[Event "*** Titled Tuesday Blitz"]
[Site "Chess.com"]
[Date "2021.03.30"]
[Round "3"]
[White "mr_gustavo"]
[Black "Baron_von_Koenig"]
[Result "0-1"]
[WhiteElo "2377"]
[BlackElo "2558"]
[TimeControl "180+1"]
[EndTime "10:29:04 PDT"]
[Termination "Baron_von_Koenig won on time"]

1. c4 {[%clk 0:03:00.9]} 1... b6 {[%clk 0:02:59.7]} 2. Nf3 {[%clk 0:02:59.3]}
2... Bb7 {[%clk 0:02:59.8]} 3. g3 {[%clk 0:02:59.8]} 3... Bxf3 {[%clk
0:02:59.5]} 4. exf3 {[%clk 0:02:59]} 4... c5 {[%clk 0:02:59.6]} 5. Bg2 {[%clk
0:02:58.7]} 5... Nc6 {[%clk 0:02:59.4]} 6. O-O {[%clk 0:02:56.4]} 6... e6 {[%clk
0:02:53]} 7. f4 {[%clk 0:02:56.1]} 7... Nge7 {[%clk 0:02:52.7]} 8. Nc3 {[%clk
0:02:56]} 8... Qc7 {[%clk 0:02:41.5]} 9. Re1 {[%clk 0:02:51.6]} 9... a6 {[%clk
0:02:40.6]} 10. d3 {[%clk 0:02:39.3]} 10... g6 {[%clk 0:02:40]} 11. f5 {[%clk
0:02:37.1]} 11... Nxf5 {[%clk 0:02:31.2]} 12. Nd5 {[%clk 0:02:33]} 12... Qd8
{[%clk 0:02:23.2]} 13. Bf4 {[%clk 0:02:30.6]} 13... Bd6 {[%clk 0:02:05.2]} 14.
g4 {[%clk 0:02:00.6]} 14... Bxf4 {[%clk 0:01:59.3]} 15. gxf5 {[%clk 0:02:00.1]}
15... Qh4 {[%clk 0:01:54.3]} 16. Nxf4 {[%clk 0:01:59.9]} 16... Qxf4 {[%clk
0:01:53.6]} 17. fxe6 {[%clk 0:02:00.5]} 17... fxe6 {[%clk 0:01:51.4]} 18. Bxc6
{[%clk 0:01:48.4]} 18... dxc6 {[%clk 0:01:51.3]} 19. Rxe6+ {[%clk 0:01:48.6]}
19... Kd7 {[%clk 0:01:51.3]} 20. Re4 {[%clk 0:01:48.9]} 20... Qg5+ {[%clk
0:01:49.7]} 21. Kh1 {[%clk 0:01:48.9]} 21... Rae8 {[%clk 0:01:39.9]} 22. Qe2
{[%clk 0:01:28.5]} 22... Rxe4 {[%clk 0:01:38.2]} 23. dxe4 {[%clk 0:01:29.4]}
23... Kc7 {[%clk 0:01:30.4]} 24. Rd1 {[%clk 0:01:28]} 24... Qe5 {[%clk
0:01:02.9]} 25. b3 {[%clk 0:01:13.5]} 25... Rf8 {[%clk 0:00:28.2]} 26. Qd3
{[%clk 0:01:01.6]} 26... b5 {[%clk 0:00:28.2]} 27. f3 {[%clk 0:00:49.1]} 27...
Kb6 {[%clk 0:00:27.9]} 28. a4 {[%clk 0:00:41.2]} 28... g5 {[%clk 0:00:26.7]} 29.
Kg2 {[%clk 0:00:18.8]} 29... h5 {[%clk 0:00:25.5]} 30. axb5 {[%clk 0:00:18.6]}
30... axb5 {[%clk 0:00:25.2]} 31. Rd2 {[%clk 0:00:15.9]} 31... g4 {[%clk
0:00:24.4]} 32. fxg4 {[%clk 0:00:16.3]} 32... hxg4 {[%clk 0:00:24.3]} 33. cxb5
{[%clk 0:00:16.8]} 33... cxb5 {[%clk 0:00:23.9]} 34. Qd6+ {[%clk 0:00:16.1]}
34... Qxd6 {[%clk 0:00:23.8]} 35. Rxd6+ {[%clk 0:00:17]} 35... Ka5 {[%clk
0:00:24.3]} 36. Rd3 {[%clk 0:00:13]} 36... Kb4 {[%clk 0:00:22.2]} 37. e5 {[%clk
0:00:04.9]} 37... c4 {[%clk 0:00:20.2]} 38. bxc4 {[%clk 0:00:05.8]} 38... Kxc4
{[%clk 0:00:20.4]} 39. Rd7 {[%clk 0:00:05.7]} 39... Re8 {[%clk 0:00:18.2]} 40.
Kg3 {[%clk 0:00:04.3]} 40... Rxe5 {[%clk 0:00:18.4]} 41. Kxg4 {[%clk 0:00:04.9]}
41... b4 {[%clk 0:00:18.8]} 42. Rb7 {[%clk 0:00:05]} 42... Rb5 {[%clk 0:00:18]}
43. Rc7+ {[%clk 0:00:04.2]} 43... Kd3 {[%clk 0:00:18.2]} 44. Rc1 {[%clk
0:00:03.6]} 44... b3 {[%clk 0:00:18.1]} 45. Rg1 {[%clk 0:00:02.7]} 45... Rc5
{[%clk 0:00:14.5]} 46. h4 {[%clk 0:00:02.2]} 46... b2 {[%clk 0:00:14]} 47. Rg3+
{[%clk 0:00:02.3]} 47... Kc2 {[%clk 0:00:13.1]} 48. Rg2+ {[%clk 0:00:02.3]}
48... Kb3 {[%clk 0:00:13.3]} 49. Rg3+ {[%clk 0:00:01.8]} 49... Rc3 {[%clk
0:00:12.5]} 50. Rg1 {[%clk 0:00:01.5]} 50... Rc1 {[%clk 0:00:12.3]} 51. Rg3+
{[%clk 0:00:02]} 51... Kb4 {[%clk 0:00:12.4]} 0-1

[Event "*** Titled Tuesday Blitz"]
[Site "Chess.com"]
[Date "2021.03.30"]
[Round "3"]
[White "WanderingPuppet"]
[Black "Grineva_Marianna"]
[Result "1-0"]
[WhiteElo "2515"]
[BlackElo "2280"]
[TimeControl "180+1"]
[EndTime "10:29:04 PDT"]
[Termination "WanderingPuppet won by resignation"]

1. e4 {[%clk 0:03:00.9]} 1... c5 {[%clk 0:03:00.2]} 2. Nf3 {[%clk 0:03:00.6]}
2... d6 {[%clk 0:02:58]} 3. d4 {[%clk 0:03:00.5]} 3... cxd4 {[%clk 0:02:58.9]}
4. Nxd4 {[%clk 0:03:01.3]} 4... Nf6 {[%clk 0:02:59.3]} 5. Nc3 {[%clk 0:03:01.7]}
5... g6 {[%clk 0:02:59.7]} 6. Be3 {[%clk 0:03:02.1]} 6... Bg7 {[%clk 0:03:00.1]}
7. f3 {[%clk 0:03:02.7]} 7... Nc6 {[%clk 0:02:58.5]} 8. Qd2 {[%clk 0:03:03]}
8... Bd7 {[%clk 0:02:58]} 9. O-O-O {[%clk 0:03:03.3]} 9... Ne5 {[%clk
0:02:54.4]} 10. g4 {[%clk 0:02:57.9]} 10... Rc8 {[%clk 0:02:52.7]} 11. g5 {[%clk
0:02:58]} 11... Nh5 {[%clk 0:02:51.1]} 12. f4 {[%clk 0:02:41.6]} 12... Nc4
{[%clk 0:02:48.6]} 13. Bxc4 {[%clk 0:02:40.5]} 13... Rxc4 {[%clk 0:02:49.5]} 14.
f5 {[%clk 0:02:28.2]} 14... Qa5 {[%clk 0:02:38]} 15. f6 {[%clk 0:02:15.8]} 15...
exf6 {[%clk 0:02:31.6]} 16. Nb3 {[%clk 0:02:16.1]} 16... Qa6 {[%clk 0:02:29.2]}
17. Qxd6 {[%clk 0:01:47.9]} 17... Qxd6 {[%clk 0:02:28.1]} 18. Rxd6 {[%clk
0:01:48.8]} 18... Be6 {[%clk 0:02:01.3]} 19. Rhd1 {[%clk 0:01:07.3]} 19... O-O
{[%clk 0:01:55.3]} 20. Nc5 {[%clk 0:01:06.8]} 20... Bg4 {[%clk 0:01:37]} 21. Rg1
{[%clk 0:01:05.6]} 21... Bc8 {[%clk 0:01:31.8]} 22. Nd5 {[%clk 0:00:54.5]} 22...
fxg5 {[%clk 0:01:22.9]} 23. b3 {[%clk 0:00:38.3]} 23... Be5 {[%clk 0:01:05.2]}
24. Rxg6+ {[%clk 0:00:25.2]} 24... hxg6 {[%clk 0:01:01.9]} 25. bxc4 {[%clk
0:00:24.7]} 25... Nf4 {[%clk 0:00:52.2]} 26. Rxg5 {[%clk 0:00:20.5]} 26... Bd6
{[%clk 0:00:47]} 27. Nxf4 {[%clk 0:00:17.1]} 27... b6 {[%clk 0:00:37.3]} 28.
Ncd3 {[%clk 0:00:14.3]} 28... Ba6 {[%clk 0:00:34.3]} 29. Nxg6 {[%clk 0:00:13.7]}
29... f6 {[%clk 0:00:26.6]} 30. Rg1 {[%clk 0:00:11]} 30... Re8 {[%clk
0:00:21.1]} 31. Ngf4+ {[%clk 0:00:09.2]} 31... Kf7 {[%clk 0:00:21.2]} 32. Nd5
{[%clk 0:00:07.5]} 32... Bxc4 {[%clk 0:00:20.7]} 33. Rf1 {[%clk 0:00:06.8]}
33... Bxd5 {[%clk 0:00:19]} 34. Bd4 {[%clk 0:00:04.1]} 34... Bxe4 {[%clk
0:00:16.8]} 35. Rxf6+ {[%clk 0:00:04.4]} 35... Ke7 {[%clk 0:00:17.2]} 36. Rh6
{[%clk 0:00:05]} 36... Bxd3 {[%clk 0:00:17.1]} 37. Rh3 {[%clk 0:00:04.2]} 37...
Rc8 {[%clk 0:00:17.7]} 38. Rxd3 {[%clk 0:00:03.9]} 38... Ke6 {[%clk 0:00:17.7]}
39. Be3 {[%clk 0:00:03.7]} 39... Rc4 {[%clk 0:00:17.4]} 40. h3 {[%clk
0:00:04.1]} 40... Rh4 {[%clk 0:00:17.7]} 41. Bf2 {[%clk 0:00:03.7]} 41... Ra4
{[%clk 0:00:18.1]} 42. a3 {[%clk 0:00:03.1]} 42... Bf4+ {[%clk 0:00:18.5]} 43.
Kd1 {[%clk 0:00:03]} 43... Be5 {[%clk 0:00:18.8]} 44. Ke2 {[%clk 0:00:03.1]}
44... Re4+ {[%clk 0:00:18.7]} 45. Re3 {[%clk 0:00:03]} 45... Ra4 {[%clk
0:00:18.9]} 46. Bg3 {[%clk 0:00:03]} 46... Ra5 {[%clk 0:00:19.1]} 47. Rxe5+
{[%clk 0:00:03.2]} 47... Rxe5+ {[%clk 0:00:20]} 48. Bxe5 {[%clk 0:00:03.8]}
48... Kxe5 {[%clk 0:00:20.5]} 49. Kd3 {[%clk 0:00:04.4]} 49... Kf4 {[%clk
0:00:19.6]} 50. Kc4 {[%clk 0:00:04.6]} 50... Kg3 {[%clk 0:00:18.8]} 51. Kb5
{[%clk 0:00:05.1]} 51... Kxh3 {[%clk 0:00:19.7]} 52. Ka6 {[%clk 0:00:05.7]}
52... Kg4 {[%clk 0:00:20.6]} 53. Kxa7 {[%clk 0:00:06.1]} 53... Kf5 {[%clk
0:00:21.5]} 54. Kxb6 {[%clk 0:00:06.5]} 54... Ke6 {[%clk 0:00:22.2]} 55. a4
{[%clk 0:00:07]} 55... Kd7 {[%clk 0:00:23.1]} 56. Kb7 {[%clk 0:00:07.4]} 56...
Kd6 {[%clk 0:00:22.7]} 57. a5 {[%clk 0:00:07.8]} 57... Kc5 {[%clk 0:00:23.6]}
58. a6 {[%clk 0:00:08.6]} 58... Kc4 {[%clk 0:00:23.7]} 59. a7 {[%clk 0:00:09.5]}
59... Kc3 {[%clk 0:00:24.4]} 60. a8=Q {[%clk 0:00:10.4]} 60... Kxc2 {[%clk
0:00:24.6]} 61. Qc8+ {[%clk 0:00:11.3]} 61... Kb2 {[%clk 0:00:24.1]} 62. Qc6
{[%clk 0:00:12.2]} 1-0

[Event "*** Titled Tuesday Blitz"]
[Site "Chess.com"]
[Date "2021.03.30"]
[Round "3"]
[White "Trankuilizer"]
[Black "GiorgianBarbosa"]
[Result "0-1"]
[WhiteElo "2584"]
[BlackElo "2425"]
[TimeControl "180+1"]
[EndTime "10:29:05 PDT"]
[Termination "GiorgianBarbosa won on time"]

1. e4 {[%clk 0:03:00.9]} 1... c6 {[%clk 0:02:59.6]} 2. d4 {[%clk 0:03:00.8]}
2... d5 {[%clk 0:03:00.2]} 3. exd5 {[%clk 0:03:01.1]} 3... cxd5 {[%clk
0:03:01.1]} 4. c4 {[%clk 0:03:02]} 4... Nf6 {[%clk 0:03:01.3]} 5. Nc3 {[%clk
0:03:02.9]} 5... g6 {[%clk 0:03:00]} 6. Nf3 {[%clk 0:03:03.8]} 6... Bg7 {[%clk
0:02:59.5]} 7. cxd5 {[%clk 0:03:04.2]} 7... Nxd5 {[%clk 0:02:59.3]} 8. Qb3
{[%clk 0:03:04.7]} 8... Nb6 {[%clk 0:02:58.5]} 9. Bb5+ {[%clk 0:03:03]} 9... Bd7
{[%clk 0:02:56.7]} 10. a4 {[%clk 0:03:03.3]} 10... O-O {[%clk 0:02:51.5]} 11. a5
{[%clk 0:02:59.5]} 11... Nc8 {[%clk 0:02:47.7]} 12. O-O {[%clk 0:02:40]} 12...
Nd6 {[%clk 0:02:45.7]} 13. Be2 {[%clk 0:02:38]} 13... Nc6 {[%clk 0:02:43.9]} 14.
a6 {[%clk 0:02:16.4]} 14... bxa6 {[%clk 0:02:30.5]} 15. d5 {[%clk 0:02:16.7]}
15... Rb8 {[%clk 0:02:29.2]} 16. Qd1 {[%clk 0:02:15.8]} 16... Nb4 {[%clk
0:02:28.2]} 17. Be3 {[%clk 0:02:07]} 17... Qc7 {[%clk 0:02:14.9]} 18. Bd4 {[%clk
0:02:06.6]} 18... Bxd4 {[%clk 0:02:08.9]} 19. Nxd4 {[%clk 0:02:04.4]} 19... Nb5
{[%clk 0:01:49.2]} 20. Ndxb5 {[%clk 0:01:42.2]} 20... axb5 {[%clk 0:01:48.7]}
21. Qd4 {[%clk 0:01:40]} 21... a5 {[%clk 0:01:42.1]} 22. Rfc1 {[%clk 0:01:36.3]}
22... Qd8 {[%clk 0:01:33.7]} 23. h4 {[%clk 0:01:25.1]} 23... Bf5 {[%clk
0:01:32.2]} 24. Qd2 {[%clk 0:01:09.4]} 24... e6 {[%clk 0:01:09.7]} 25. g4 {[%clk
0:01:05.2]} 25... Bc2 {[%clk 0:01:03.1]} 26. Rxc2 {[%clk 0:00:55.1]} 26... Nxc2
{[%clk 0:01:04]} 27. Qxc2 {[%clk 0:00:56]} 27... b4 {[%clk 0:00:56.1]} 28. Ne4
{[%clk 0:00:45.2]} 28... exd5 {[%clk 0:00:55.9]} 29. Ng5 {[%clk 0:00:44.8]}
29... Rc8 {[%clk 0:00:38.2]} 30. Qd2 {[%clk 0:00:44]} 30... d4 {[%clk
0:00:33.7]} 31. Nf3 {[%clk 0:00:42.9]} 31... Qd7 {[%clk 0:00:30]} 32. Qxd4
{[%clk 0:00:38]} 32... Qxd4 {[%clk 0:00:27.8]} 33. Nxd4 {[%clk 0:00:38.9]} 33...
Rfd8 {[%clk 0:00:28]} 34. Nb3 {[%clk 0:00:34]} 34... Rc2 {[%clk 0:00:27.4]} 35.
Bf1 {[%clk 0:00:15.9]} 35... Rxb2 {[%clk 0:00:25.6]} 36. Nxa5 {[%clk 0:00:16.2]}
36... Rd4 {[%clk 0:00:20.7]} 37. Bh3 {[%clk 0:00:08.8]} 37... Rd3 {[%clk
0:00:20.5]} 38. Kg2 {[%clk 0:00:08.4]} 38... Ra3 {[%clk 0:00:20.5]} 39. Nc4
{[%clk 0:00:06.5]} 39... Rxf2+ {[%clk 0:00:16.2]} 40. Kxf2 {[%clk 0:00:06.1]}
40... Rxa1 {[%clk 0:00:16.8]} 41. Bg2 {[%clk 0:00:04.9]} 41... Ra2+ {[%clk
0:00:16.6]} 42. Kg3 {[%clk 0:00:04.3]} 42... b3 {[%clk 0:00:16.5]} 43. Be4
{[%clk 0:00:04.1]} 43... Rc2 {[%clk 0:00:12.3]} 44. Ne3 {[%clk 0:00:03.7]} 44...
Rc3 {[%clk 0:00:11.3]} 45. Kf2 {[%clk 0:00:03.8]} 45... b2 {[%clk 0:00:11.7]}
46. Nd1 {[%clk 0:00:02.8]} 46... Rc4 {[%clk 0:00:09.4]} 47. Bd3 {[%clk
0:00:02.2]} 47... Rb4 {[%clk 0:00:09.1]} 48. Bb1 {[%clk 0:00:01.8]} 48... Rxg4
{[%clk 0:00:08.5]} 0-1

[Event "*** Titled Tuesday Blitz"]
[Site "Chess.com"]
[Date "2021.03.30"]
[Round "3"]
[White "kakorrhaphiophobie"]
[Black "Nachsueb"]
[Result "1-0"]
[WhiteElo "2343"]
[BlackElo "2164"]
[TimeControl "180+1"]
[EndTime "10:29:05 PDT"]
[Termination "kakorrhaphiophobie won by resignation"]

1. d4 {[%clk 0:03:00.9]} 1... Nf6 {[%clk 0:02:58.9]} 2. c4 {[%clk 0:03:01]} 2...
e6 {[%clk 0:02:59.4]} 3. Nf3 {[%clk 0:03:00.7]} 3... d5 {[%clk 0:02:59.7]} 4.
Nc3 {[%clk 0:03:00.9]} 4... Be7 {[%clk 0:02:58.8]} 5. Bf4 {[%clk 0:03:01.3]}
5... O-O {[%clk 0:02:58.2]} 6. e3 {[%clk 0:02:59.7]} 6... b6 {[%clk 0:02:56.4]}
7. cxd5 {[%clk 0:02:56.1]} 7... exd5 {[%clk 0:02:57.3]} 8. Bd3 {[%clk
0:02:47.3]} 8... Bg4 {[%clk 0:02:55]} 9. h3 {[%clk 0:02:43.1]} 9... Bh5 {[%clk
0:02:54.6]} 10. O-O {[%clk 0:02:40.6]} 10... Nbd7 {[%clk 0:02:53.1]} 11. Rc1
{[%clk 0:02:39.4]} 11... c5 {[%clk 0:02:51.9]} 12. dxc5 {[%clk 0:02:33.6]} 12...
Bxc5 {[%clk 0:02:50.2]} 13. Be2 {[%clk 0:02:32.8]} 13... Ne4 {[%clk 0:01:55.2]}
14. Qxd5 {[%clk 0:02:22.2]} 14... Nxc3 {[%clk 0:01:47.8]} 15. Rxc3 {[%clk
0:02:17.5]} 15... Nf6 {[%clk 0:01:46.3]} 16. Qb3 {[%clk 0:01:58.7]} 16... Ne4
{[%clk 0:01:39.1]} 17. Rd3 {[%clk 0:01:56.8]} 17... Qe7 {[%clk 0:01:39]} 18.
Rfd1 {[%clk 0:01:47.7]} 18... Rfd8 {[%clk 0:01:32.9]} 19. Rxd8+ {[%clk
0:01:45.6]} 19... Rxd8 {[%clk 0:01:33.8]} 20. Rxd8+ {[%clk 0:01:44.5]} 20...
Qxd8 {[%clk 0:01:34.7]} 21. Qd3 {[%clk 0:01:38.6]} 21... Qe7 {[%clk 0:01:24.9]}
22. Nd2 {[%clk 0:01:15.6]} 22... Bg6 {[%clk 0:01:13]} 23. Nxe4 {[%clk
0:01:05.5]} 23... Bxe4 {[%clk 0:01:13.9]} 24. Qd1 {[%clk 0:01:03.8]} 24... h6
{[%clk 0:01:11.3]} 25. a3 {[%clk 0:00:54.1]} 25... a5 {[%clk 0:01:06.3]} 26. Qd2
{[%clk 0:00:37.4]} 26... Bc6 {[%clk 0:01:02.1]} 27. Bf3 {[%clk 0:00:31.7]} 27...
Bxf3 {[%clk 0:01:01.8]} 28. gxf3 {[%clk 0:00:32.1]} 28... Qe6 {[%clk 0:00:55.7]}
29. Kg2 {[%clk 0:00:31.8]} 29... Qg6+ {[%clk 0:00:55.3]} 30. Bg3 {[%clk
0:00:32]} 30... Qe6 {[%clk 0:00:55.8]} 31. Qd8+ {[%clk 0:00:31]} 31... Kh7
{[%clk 0:00:55.9]} 32. Qd3+ {[%clk 0:00:31.6]} 32... Kg8 {[%clk 0:00:55.2]} 33.
h4 {[%clk 0:00:28.5]} 33... Qc6 {[%clk 0:00:50.8]} 34. Qc3 {[%clk 0:00:27.7]}
34... Qb5 {[%clk 0:00:44.1]} 35. Be5 {[%clk 0:00:25.8]} 35... f6 {[%clk
0:00:36.7]} 36. Bd4 {[%clk 0:00:25.9]} 36... Bxd4 {[%clk 0:00:34.9]} 37. Qxd4
{[%clk 0:00:26.8]} 37... Qb3 {[%clk 0:00:29.6]} 38. f4 {[%clk 0:00:26.3]} 38...
b5 {[%clk 0:00:28.8]} 39. Kg3 {[%clk 0:00:23.7]} 39... b4 {[%clk 0:00:28.4]} 40.
axb4 {[%clk 0:00:23.9]} 40... axb4 {[%clk 0:00:28.9]} 41. Kf3 {[%clk 0:00:22.9]}
41... Qa4 {[%clk 0:00:28.2]} 42. Qd5+ {[%clk 0:00:21.5]} 42... Kh7 {[%clk
0:00:24.6]} 43. b3 {[%clk 0:00:22.4]} 43... Qa1 {[%clk 0:00:20.3]} 44. h5 {[%clk
0:00:22.9]} 44... Qb1 {[%clk 0:00:19.7]} 45. Qe4+ {[%clk 0:00:22.4]} 45... Qxe4+
{[%clk 0:00:19.9]} 46. Kxe4 {[%clk 0:00:23.3]} 46... g6 {[%clk 0:00:19.5]} 47.
hxg6+ {[%clk 0:00:20.7]} 47... Kxg6 {[%clk 0:00:20.4]} 48. Kf3 {[%clk
0:00:21.1]} 48... Kf5 {[%clk 0:00:19.9]} 49. e4+ {[%clk 0:00:21.4]} 49... Ke6
{[%clk 0:00:20.4]} 50. Kg4 {[%clk 0:00:20.9]} 50... Kf7 {[%clk 0:00:18.6]} 51.
Kh5 {[%clk 0:00:20.9]} 51... Kg7 {[%clk 0:00:19.1]} 52. f5 {[%clk 0:00:21.1]}
52... Kh7 {[%clk 0:00:19.1]} 53. f4 {[%clk 0:00:21.7]} 53... Kg7 {[%clk
0:00:19.3]} 54. e5 {[%clk 0:00:22.6]} 54... Kh7 {[%clk 0:00:17.5]} 55. e6 {[%clk
0:00:20.8]} 55... Kg7 {[%clk 0:00:17.8]} 56. e7 {[%clk 0:00:20.5]} 56... Kf7
{[%clk 0:00:17.9]} 57. Kxh6 {[%clk 0:00:21.4]} 57... Kxe7 {[%clk 0:00:18.8]} 58.
Kg7 {[%clk 0:00:21.9]} 58... Ke8 {[%clk 0:00:16.3]} 59. Kxf6 {[%clk 0:00:22.8]}
59... Kf8 {[%clk 0:00:16.8]} 60. Ke6 {[%clk 0:00:23.4]} 60... Ke8 {[%clk
0:00:17.1]} 61. f6 {[%clk 0:00:24.1]} 61... Kf8 {[%clk 0:00:17.7]} 62. f7 {[%clk
0:00:24.4]} 62... Kg7 {[%clk 0:00:17]} 63. Ke7 {[%clk 0:00:25.3]} 1-0

[Event "*** Titled Tuesday Blitz"]
[Site "Chess.com"]
[Date "2021.03.30"]
[Round "3"]
[White "Mazetovic"]
[Black "scandalgod"]
[Result "1-0"]
[WhiteElo "2694"]
[BlackElo "2442"]
[TimeControl "180+1"]
[EndTime "10:29:06 PDT"]
[Termination "Mazetovic won by resignation"]

1. e4 {[%clk 0:03:00.9]} 1... e5 {[%clk 0:02:59.9]} 2. Nf3 {[%clk 0:02:59.5]}
2... Nc6 {[%clk 0:02:58.1]} 3. Bb5 {[%clk 0:02:58.3]} 3... a6 {[%clk 0:02:57.9]}
4. Ba4 {[%clk 0:02:58.1]} 4... d6 {[%clk 0:02:58.2]} 5. c3 {[%clk 0:02:52.2]}
5... f5 {[%clk 0:02:55.3]} 6. exf5 {[%clk 0:02:50.4]} 6... Bxf5 {[%clk 0:02:54]}
7. d4 {[%clk 0:02:50.9]} 7... e4 {[%clk 0:02:48.7]} 8. Nfd2 {[%clk 0:02:45.2]}
8... d5 {[%clk 0:02:41.6]} 9. Nf1 {[%clk 0:02:43.6]} 9... Nf6 {[%clk 0:02:38.4]}
10. Ne3 {[%clk 0:02:43.3]} 10... Be6 {[%clk 0:02:32]} 11. b4 {[%clk 0:02:38.4]}
11... b5 {[%clk 0:02:29]} 12. Bc2 {[%clk 0:02:34.6]} 12... Bd6 {[%clk
0:02:25.5]} 13. a3 {[%clk 0:02:31.6]} 13... O-O {[%clk 0:02:24.7]} 14. Nd2
{[%clk 0:02:31.3]} 14... Qe8 {[%clk 0:02:20]} 15. Nb3 {[%clk 0:02:28.9]} 15...
Qg6 {[%clk 0:02:16.3]} 16. h3 {[%clk 0:02:28.9]} 16... Bf4 {[%clk 0:02:07.7]}
17. Nc5 {[%clk 0:02:24]} 17... Rae8 {[%clk 0:01:55.8]} 18. Bb3 {[%clk 0:02:22]}
18... Bxe3 {[%clk 0:01:52.4]} 19. Bxe3 {[%clk 0:02:21.8]} 19... Qxg2 {[%clk
0:01:49.4]} 20. Kd2 {[%clk 0:02:22.1]} 20... Bc8 {[%clk 0:01:35.5]} 21. Rg1
{[%clk 0:02:19.5]} 21... Qxh3 {[%clk 0:01:32.5]} 22. Rg3 {[%clk 0:02:19.2]}
22... Qh2 {[%clk 0:01:24.3]} 23. Qe2 {[%clk 0:02:06.1]} 23... Ne7 {[%clk
0:01:20.4]} 24. Bf4 {[%clk 0:01:52.2]} 24... Qh4 {[%clk 0:01:03.7]} 25. Be5
{[%clk 0:01:43.6]} 25... Nf5 {[%clk 0:00:56.1]} 26. Rg2 {[%clk 0:01:14.5]} 26...
c6 {[%clk 0:00:51.4]} 27. Rag1 {[%clk 0:01:09.5]} 27... Rxe5 {[%clk 0:00:33.3]}
28. dxe5 {[%clk 0:01:09.1]} 28... Qf4+ {[%clk 0:00:33.2]} 29. Kc2 {[%clk
0:01:06.4]} 29... Qxe5 {[%clk 0:00:32.9]} 30. Kb2 {[%clk 0:00:56.3]} 30... Kh8
{[%clk 0:00:32.8]} 31. Qd2 {[%clk 0:00:53.5]} 31... a5 {[%clk 0:00:27.2]} 32.
Rg5 {[%clk 0:00:48.1]} 32... axb4 {[%clk 0:00:26.1]} 33. axb4 {[%clk 0:00:47.5]}
33... h6 {[%clk 0:00:25.8]} 34. Rg6 {[%clk 0:00:45.2]} 34... d4 {[%clk
0:00:24.9]} 35. cxd4 {[%clk 0:00:23.5]} 35... Nxd4 {[%clk 0:00:21.6]} 36. Qc3
{[%clk 0:00:07.5]} 36... Nd5 {[%clk 0:00:21.5]} 37. Bxd5 {[%clk 0:00:07]} 37...
cxd5 {[%clk 0:00:21.6]} 38. Rxg7 {[%clk 0:00:06.9]} 38... Rxf2+ {[%clk 0:00:20]}
39. Kb1 {[%clk 0:00:07]} 39... Bf5 {[%clk 0:00:15.5]} 40. Rg8+ {[%clk
0:00:06.7]} 40... Kh7 {[%clk 0:00:15.8]} 41. R1g7+ {[%clk 0:00:06.3]} 41... Qxg7
{[%clk 0:00:15.6]} 42. Rxg7+ {[%clk 0:00:07.2]} 42... Kxg7 {[%clk 0:00:15.9]}
43. Qxd4+ {[%clk 0:00:07.7]} 43... Kg6 {[%clk 0:00:15.2]} 44. Qxf2 {[%clk
0:00:08.6]} 44... e3+ {[%clk 0:00:15.5]} 45. Qxf5+ {[%clk 0:00:06.7]} 45... Kxf5
{[%clk 0:00:15.8]} 46. Kc2 {[%clk 0:00:07.4]} 46... Ke5 {[%clk 0:00:14.5]} 47.
Kd3 {[%clk 0:00:07.7]} 47... d4 {[%clk 0:00:14.9]} 48. Nb3 {[%clk 0:00:07.9]}
48... Kd5 {[%clk 0:00:14]} 49. Nxd4 {[%clk 0:00:08.1]} 49... e2 {[%clk
0:00:13.8]} 50. Nxe2 {[%clk 0:00:08]} 50... h5 {[%clk 0:00:14.2]} 51. Nc3+
{[%clk 0:00:08.4]} 51... Ke5 {[%clk 0:00:12.9]} 52. Ke3 {[%clk 0:00:08.7]} 52...
h4 {[%clk 0:00:12.4]} 53. Nxb5 {[%clk 0:00:08.5]} 53... Kd5 {[%clk 0:00:12.4]}
54. Nc3+ {[%clk 0:00:08.3]} 54... Kc4 {[%clk 0:00:12.8]} 55. b5 {[%clk
0:00:08.7]} 1-0